[Event "Titled Tuesday Blitz August 31 2021"]
[White "Federzoni, Enzo"]
[Black "Krysa, Leandro"]
[WhiteFideId "2173301"]
[BlackFideId "116807"]
[WhiteElo "1956"]
[BlackElo "2490"]
[Result "0-1"]
[Round "06"]
[TimeControl "180+1"]
[Date "2021.08.31"]
[WhiteClock "0:00:34"]
[BlackClock "0:00:59"]

1. e4 {[%clk 0:03:00]}  c5 {[%clk 0:02:59]} 2. Nf3 {[%clk 0:03:00]}  Nc6 {[%clk 0:03:00]} 3. Bb5 {[%clk 0:02:58]}  g6 {[%clk 0:02:59]} 4. Bxc6 {[%clk 0:02:56]}  dxc6 {[%clk 0:02:58]} 5. d3 {[%clk 0:02:55]}  Bg7 {[%clk 0:02:58]} 6. Nc3 {[%clk 0:02:54]}  Qc7 {[%clk 0:02:57]} 7. h3 {[%clk 0:02:47]}  b6 {[%clk 0:02:56]} 8. O-O {[%clk 0:02:45]}  e5 {[%clk 0:02:51]} 9. Be3 {[%clk 0:02:44]}  Nf6 {[%clk 0:02:50]} 10. Qe2 {[%clk 0:02:44]}  Nh5 {[%clk 0:02:47]} 11. Nh2 {[%clk 0:02:37]}  O-O {[%clk 0:02:42]} 12. Rae1 {[%clk 0:02:35]}  Nf4 {[%clk 0:02:37]} 13. Bxf4 {[%clk 0:02:31]}  exf4 {[%clk 0:02:38]} 14. e5 {[%clk 0:02:29]}  Re8 {[%clk 0:02:35]} 15. Nf3 {[%clk 0:02:21]}  Bf5 {[%clk 0:02:33]} 16. Qd2 {[%clk 0:01:55]}  Bxe5 {[%clk 0:02:19]} 17. Nxe5 {[%clk 0:01:53]}  Rxe5 {[%clk 0:02:20]} 18. Qxf4 {[%clk 0:01:53]}  Rae8 {[%clk 0:02:20]} 19. Ne4 {[%clk 0:01:48]}  Bxe4 {[%clk 0:02:12]} 20. Rxe4 {[%clk 0:01:48]}  f5 {[%clk 0:02:04]} 21. Rxe5 {[%clk 0:01:34]}  Qxe5 {[%clk 0:02:05]} 22. Qf3 {[%clk 0:01:31]}  Re6 {[%clk 0:01:55]} 23. c3 {[%clk 0:01:25]}  Kg7 {[%clk 0:01:49]} 24. g3 {[%clk 0:01:25]}  Qd5 {[%clk 0:01:36]} 25. Qf4 {[%clk 0:01:20]}  Re7 {[%clk 0:01:33]} 26. d4 {[%clk 0:01:06]}  cxd4 {[%clk 0:01:26]} 27. cxd4 {[%clk 0:01:00]}  Qxa2 {[%clk 0:01:23]} 28. Qd6 {[%clk 0:00:54]}  Qe6 {[%clk 0:01:22]} 29. Qb8 {[%clk 0:00:50]}  Qd7 {[%clk 0:01:15]} 30. Rd1 {[%clk 0:00:44]}  g5 {[%clk 0:01:01]} 31. h4 {[%clk 0:00:34]}  Re8 {[%clk 0:00:59]} 0-1


[Site "https://www.chess.com"]

[Event "Titled Tuesday Blitz August 31 2021"]
[White "Fier, Alexandr"]
[Black "Aditya Mittal"]
[WhiteFideId "2107139"]
[BlackFideId "35042025"]
[WhiteElo "2569"]
[BlackElo "2171"]
[Result "1-0"]
[Round "06"]
[TimeControl "180+1"]
[Date "2021.08.31"]
[WhiteClock "0:01:45"]
[BlackClock "0:00:27"]

1. d4 {[%clk 0:03:00]}  Nf6 {[%clk 0:02:59]} 2. c4 {[%clk 0:03:00]}  e6 {[%clk 0:02:59]} 3. Nf3 {[%clk 0:02:59]}  d5 {[%clk 0:03:00]} 4. Nc3 {[%clk 0:02:59]}  c6 {[%clk 0:03:00]} 5. Bg5 {[%clk 0:02:58]}  dxc4 {[%clk 0:02:59]} 6. e4 {[%clk 0:02:58]}  b5 {[%clk 0:03:00]} 7. e5 {[%clk 0:02:58]}  h6 {[%clk 0:03:00]} 8. Bh4 {[%clk 0:02:58]}  g5 {[%clk 0:03:01]} 9. Nxg5 {[%clk 0:02:59]}  hxg5 {[%clk 0:03:02]} 10. Bxg5 {[%clk 0:02:59]}  Nbd7 {[%clk 0:03:03]} 11. exf6 {[%clk 0:02:59]}  Bb7 {[%clk 0:03:03]} 12. g3 {[%clk 0:03:00]}  c5 {[%clk 0:03:04]} 13. d5 {[%clk 0:03:00]}  Qb6 {[%clk 0:03:05]} 14. Bg2 {[%clk 0:03:00]}  O-O-O {[%clk 0:03:05]} 15. O-O {[%clk 0:03:00]}  b4 {[%clk 0:03:05]} 16. Rb1 {[%clk 0:03:01]}  Qa6 {[%clk 0:03:06]} 17. dxe6 {[%clk 0:03:01]}  Bxg2 {[%clk 0:03:07]} 18. e7 {[%clk 0:02:47]}  Bxf1 {[%clk 0:03:06]} 19. Qd5 {[%clk 0:02:48]}  Bxe7 {[%clk 0:02:47]} 20. fxe7 {[%clk 0:02:47]}  Bd3 {[%clk 0:02:47]} 21. Ne4 {[%clk 0:02:26]}  Bxb1 {[%clk 0:02:46]} 22. Nd6+ {[%clk 0:02:26]}  Kc7 {[%clk 0:02:47]} 23. Bf4 {[%clk 0:02:23]}  Kb6 {[%clk 0:02:47]} 24. exd8=Q+ {[%clk 0:02:23]}  Rxd8 {[%clk 0:02:47]} 25. Nxc4+ {[%clk 0:02:23]}  Kb5 {[%clk 0:02:46]} 26. Nd6+ {[%clk 0:02:23]}  Kb6 {[%clk 0:02:47]} 27. a4 {[%clk 0:02:23]}  bxa3 {[%clk 0:02:42]} 28. Nc4+ {[%clk 0:02:24]}  Qxc4 {[%clk 0:02:38]} 29. Qxc4 {[%clk 0:02:25]}  a2 {[%clk 0:02:38]} 30. Qa4 {[%clk 0:02:10]}  Nf6 {[%clk 0:02:18]} 31. b4 {[%clk 0:01:58]}  cxb4 {[%clk 0:00:52]} 32. Qxb4+ {[%clk 0:01:53]}  Ka6 {[%clk 0:00:45]} 33. Qa4+ {[%clk 0:01:48]}  Kb6 {[%clk 0:00:44]} 34. Be3+ {[%clk 0:01:48]}  Kb7 {[%clk 0:00:35]} 35. Qxa7+ {[%clk 0:01:48]}  Kc8 {[%clk 0:00:33]} 36. Qa6+ {[%clk 0:01:46]}  Kc7 {[%clk 0:00:29]} 37. Bb6+ {[%clk 0:01:44]}  Kd7 {[%clk 0:00:27]} 38. Bxd8 {[%clk 0:01:45]} 1-0


[Site "https://www.chess.com"]

[Event "Titled Tuesday Blitz August 31 2021"]
[White "Gelman, Alexander"]
[Black "Stelmaszyk, Nico"]
[WhiteFideId "4118316"]
[BlackFideId "16200462"]
[WhiteElo "2375"]
[BlackElo "2119"]
[Result "1/2-1/2"]
[Round "06"]
[TimeControl "180+1"]
[Date "2021.08.31"]
[WhiteClock "0:00:17"]
[BlackClock "0:00:43"]

1. d4 {[%clk 0:03:00]}  d5 {[%clk 0:02:59]} 2. Nc3 {[%clk 0:03:01]}  c5 {[%clk 0:02:54]} 3. e4 {[%clk 0:02:59]}  dxe4 {[%clk 0:02:47]} 4. Nge2 {[%clk 0:02:57]}  cxd4 {[%clk 0:02:45]} 5. Qxd4 {[%clk 0:02:11]}  Qxd4 {[%clk 0:02:43]} 6. Nxd4 {[%clk 0:02:11]}  Nf6 {[%clk 0:02:43]} 7. Ndb5 {[%clk 0:01:55]}  Na6 {[%clk 0:02:42]} 8. Bg5 {[%clk 0:01:55]}  Bd7 {[%clk 0:02:38]} 9. O-O-O {[%clk 0:01:52]}  Bc6 {[%clk 0:02:07]} 10. Nd4 {[%clk 0:01:32]}  Bd7 {[%clk 0:02:02]} 11. Bb5 {[%clk 0:01:13]}  O-O-O {[%clk 0:01:58]} 12. Rhe1 {[%clk 0:01:02]}  Nc5 {[%clk 0:01:50]} 13. b4 {[%clk 0:00:54]}  e5 {[%clk 0:01:32]} 14. Bxf6 {[%clk 0:00:42]}  gxf6 {[%clk 0:01:30]} 15. Bxd7+ {[%clk 0:00:38]}  Nxd7 {[%clk 0:01:25]} 16. Ndb5 {[%clk 0:00:35]}  Bxb4 {[%clk 0:01:20]} 17. Rxe4 {[%clk 0:00:35]}  Bxc3 {[%clk 0:01:18]} 18. Nxc3 {[%clk 0:00:35]}  Nb6 {[%clk 0:01:18]} 19. Rxd8+ {[%clk 0:00:33]}  Rxd8 {[%clk 0:01:19]} 20. Rh4 {[%clk 0:00:33]}  Kd7 {[%clk 0:01:06]} 21. Rxh7 {[%clk 0:00:33]}  Ke6 {[%clk 0:01:05]} 22. Ne4 {[%clk 0:00:32]}  Nd7 {[%clk 0:01:01]} 23. g4 {[%clk 0:00:28]}  Rc8 {[%clk 0:01:00]} 24. Rh6 {[%clk 0:00:26]}  Ke7 {[%clk 0:00:56]} 25. f3 {[%clk 0:00:25]}  Rc4 {[%clk 0:00:54]} 26. h4 {[%clk 0:00:22]}  Ra4 {[%clk 0:00:42]} 27. Kb2 {[%clk 0:00:22]}  Rd4 {[%clk 0:00:43]} 28. Kc1 {[%clk 0:00:16]}  Ra4 {[%clk 0:00:43]} 29. Kb2 {[%clk 0:00:16]}  Rd4 {[%clk 0:00:43]} 30. Kc1 {[%clk 0:00:17]}  Ra4 {[%clk 0:00:43]} 1/2-1/2


[Site "https://www.chess.com"]

[Event "Titled Tuesday Blitz August 31 2021"]
[White "Goltsev, Dmitry"]
[Black "Timofeev, Artyom"]
[WhiteFideId "24176710"]
[BlackFideId "4140419"]
[WhiteElo "2369"]
[BlackElo "2582"]
[Result "1/2-1/2"]
[Round "06"]
[TimeControl "180+1"]
[Date "2021.08.31"]
[WhiteClock "0:01:00"]
[BlackClock "0:01:16"]

1. e4 {[%clk 0:02:57]}  c5 {[%clk 0:03:00]} 2. Nf3 {[%clk 0:02:57]}  Nc6 {[%clk 0:03:00]} 3. d4 {[%clk 0:02:57]}  cxd4 {[%clk 0:03:00]} 4. Nxd4 {[%clk 0:02:58]}  g6 {[%clk 0:03:00]} 5. Nc3 {[%clk 0:02:56]}  Bg7 {[%clk 0:03:01]} 6. Be3 {[%clk 0:02:56]}  Nf6 {[%clk 0:03:01]} 7. Nxc6 {[%clk 0:02:54]}  dxc6 {[%clk 0:02:59]} 8. Qxd8+ {[%clk 0:02:53]}  Kxd8 {[%clk 0:02:59]} 9. O-O-O {[%clk 0:02:53]}  Nd7 {[%clk 0:02:56]} 10. Bc4 {[%clk 0:02:46]}  Rf8 {[%clk 0:02:48]} 11. h3 {[%clk 0:02:41]}  Kc7 {[%clk 0:02:46]} 12. a4 {[%clk 0:02:07]}  Nb6 {[%clk 0:02:34]} 13. Bb3 {[%clk 0:02:06]}  Be6 {[%clk 0:02:34]} 14. Bxe6 {[%clk 0:02:03]}  fxe6 {[%clk 0:02:34]} 15. Ne2 {[%clk 0:01:58]}  Nxa4 {[%clk 0:02:29]} 16. c3 {[%clk 0:01:53]}  e5 {[%clk 0:02:27]} 17. b3 {[%clk 0:01:50]}  Nb6 {[%clk 0:02:26]} 18. c4 {[%clk 0:01:45]}  Nd7 {[%clk 0:02:21]} 19. Kc2 {[%clk 0:01:41]}  e6 {[%clk 0:02:20]} 20. h4 {[%clk 0:01:35]}  h5 {[%clk 0:02:19]} 21. Rh3 {[%clk 0:01:32]}  Rf6 {[%clk 0:02:14]} 22. Rg3 {[%clk 0:01:30]}  Bf8 {[%clk 0:02:14]} 23. Ng1 {[%clk 0:01:18]}  Nc5 {[%clk 0:02:09]} 24. f3 {[%clk 0:01:16]}  a5 {[%clk 0:02:08]} 25. Ra1 {[%clk 0:01:14]}  a4 {[%clk 0:01:59]} 26. bxa4 {[%clk 0:01:13]}  Rxa4 {[%clk 0:01:57]} 27. Rxa4 {[%clk 0:01:13]}  Nxa4 {[%clk 0:01:58]} 28. Ne2 {[%clk 0:01:08]}  Nc5 {[%clk 0:01:42]} 29. Bg5 {[%clk 0:01:01]}  Rf7 {[%clk 0:01:42]} 30. Be3 {[%clk 0:01:00]}  Rf6 {[%clk 0:01:19]} 31. Bg5 {[%clk 0:00:59]}  Rf7 {[%clk 0:01:19]} 32. Be3 {[%clk 0:01:00]}  Rf6 {[%clk 0:01:16]} 1/2-1/2


[Site "https://www.chess.com"]

[Event "Titled Tuesday Blitz August 31 2021"]
[White "Gutenev, Alexander"]
[Black "Visakh N R"]
[WhiteFideId "4195540"]
[BlackFideId "25012223"]
[WhiteElo "2432"]
[BlackElo "2428"]
[Result "0-1"]
[Round "06"]
[TimeControl "180+1"]
[Date "2021.08.31"]
[WhiteClock "0:00:26"]
[BlackClock "0:01:02"]

1. e4 {[%clk 0:03:00]}  e5 {[%clk 0:02:57]} 2. Nf3 {[%clk 0:03:00]}  Nc6 {[%clk 0:02:57]} 3. Bb5 {[%clk 0:03:00]}  Nf6 {[%clk 0:02:56]} 4. O-O {[%clk 0:03:00]}  Nxe4 {[%clk 0:02:56]} 5. Re1 {[%clk 0:03:00]}  Nd6 {[%clk 0:02:56]} 6. Nxe5 {[%clk 0:03:01]}  Nxe5 {[%clk 0:02:55]} 7. Rxe5+ {[%clk 0:03:00]}  Be7 {[%clk 0:02:55]} 8. Bf1 {[%clk 0:03:01]}  O-O {[%clk 0:02:55]} 9. d4 {[%clk 0:03:01]}  Bf6 {[%clk 0:02:52]} 10. Re1 {[%clk 0:03:00]}  Nf5 {[%clk 0:02:52]} 11. d5 {[%clk 0:02:59]}  d6 {[%clk 0:02:51]} 12. Nd2 {[%clk 0:02:59]}  g6 {[%clk 0:02:49]} 13. Ne4 {[%clk 0:02:59]}  Bg7 {[%clk 0:02:49]} 14. c3 {[%clk 0:02:59]}  Bd7 {[%clk 0:02:46]} 15. Bg5 {[%clk 0:02:55]}  f6 {[%clk 0:02:45]} 16. Bd2 {[%clk 0:02:52]}  Re8 {[%clk 0:02:44]} 17. Qb3 {[%clk 0:02:51]}  b5 {[%clk 0:02:33]} 18. h3 {[%clk 0:02:33]}  Qb8 {[%clk 0:02:32]} 19. Bd3 {[%clk 0:02:23]}  Qb7 {[%clk 0:02:24]} 20. a4 {[%clk 0:02:18]}  a6 {[%clk 0:02:23]} 21. axb5 {[%clk 0:02:16]}  axb5 {[%clk 0:02:24]} 22. Bc2 {[%clk 0:01:51]}  Rxa1 {[%clk 0:02:18]} 23. Rxa1 {[%clk 0:01:51]}  Ne7 {[%clk 0:02:19]} 24. c4 {[%clk 0:01:48]}  Rb8 {[%clk 0:02:18]} 25. Bc3 {[%clk 0:01:45]}  bxc4 {[%clk 0:02:17]} 26. Qxc4 {[%clk 0:01:41]}  Rf8 {[%clk 0:01:48]} 27. Rd1 {[%clk 0:01:37]}  Nf5 {[%clk 0:01:38]} 28. Qd3 {[%clk 0:01:28]}  Bb5 {[%clk 0:01:34]} 29. Qf3 {[%clk 0:01:27]}  Bc4 {[%clk 0:01:32]} 30. Kh2 {[%clk 0:01:10]}  Qb5 {[%clk 0:01:23]} 31. g4 {[%clk 0:00:47]}  Be2 {[%clk 0:01:20]} 32. Qf4 {[%clk 0:00:41]}  Bh6 {[%clk 0:01:17]} 33. g5 {[%clk 0:00:36]}  fxg5 {[%clk 0:01:17]} 34. Nxg5 {[%clk 0:00:33]}  Bxd1 {[%clk 0:01:17]} 35. Bxd1 {[%clk 0:00:34]}  Qf1 {[%clk 0:01:13]} 36. Bg4 {[%clk 0:00:30]}  Ng7 {[%clk 0:01:06]} 37. Bf6 {[%clk 0:00:25]}  Bxg5 {[%clk 0:01:04]} 38. Qxg5 {[%clk 0:00:25]}  Qxf2+ {[%clk 0:01:03]} 39. Kh1 {[%clk 0:00:26]}  Qf1+ {[%clk 0:01:03]} 40. Kh2 {[%clk 0:00:26]}  Qxf6 {[%clk 0:01:02]} 0-1


[Site "https://www.chess.com"]

[Event "Titled Tuesday Blitz August 31 2021"]
[White "Harutjunyan, Gevorg"]
[Black "Petriashvili, Nikoloz"]
[WhiteFideId "13300873"]
[BlackFideId "13611216"]
[WhiteElo "2498"]
[BlackElo "2430"]
[Result "1-0"]
[Round "06"]
[TimeControl "180+1"]
[Date "2021.08.31"]
[WhiteClock "0:01:11"]
[BlackClock "0:00:38"]

1. e4 {[%clk 0:03:00]}  c6 {[%clk 0:03:00]} 2. Nf3 {[%clk 0:02:57]}  d5 {[%clk 0:03:01]} 3. d3 {[%clk 0:02:56]}  Qc7 {[%clk 0:03:00]} 4. Nc3 {[%clk 0:02:48]}  dxe4 {[%clk 0:02:23]} 5. dxe4 {[%clk 0:02:49]}  e5 {[%clk 0:02:17]} 6. Bc4 {[%clk 0:02:49]}  Be7 {[%clk 0:02:14]} 7. Ng5 {[%clk 0:02:38]}  Bxg5 {[%clk 0:02:11]} 8. Bxg5 {[%clk 0:02:38]}  h6 {[%clk 0:02:00]} 9. Be3 {[%clk 0:02:34]}  Nf6 {[%clk 0:01:56]} 10. Bc5 {[%clk 0:02:29]}  Qd7 {[%clk 0:01:38]} 11. Bd6 {[%clk 0:02:22]}  Qg4 {[%clk 0:01:09]} 12. Qxg4 {[%clk 0:02:15]}  Nxg4 {[%clk 0:01:09]} 13. h3 {[%clk 0:02:09]}  Nf6 {[%clk 0:01:08]} 14. Bxe5 {[%clk 0:02:09]}  Nbd7 {[%clk 0:01:08]} 15. Bd6 {[%clk 0:02:06]}  Nb6 {[%clk 0:01:04]} 16. Bb3 {[%clk 0:02:02]}  Be6 {[%clk 0:01:04]} 17. Bxe6 {[%clk 0:01:47]}  fxe6 {[%clk 0:01:05]} 18. O-O-O {[%clk 0:01:48]}  O-O-O {[%clk 0:01:03]} 19. e5 {[%clk 0:01:37]}  Nfd5 {[%clk 0:01:02]} 20. Ne4 {[%clk 0:01:37]}  Nc4 {[%clk 0:01:00]} 21. b3 {[%clk 0:01:35]}  Ncb6 {[%clk 0:00:56]} 22. c4 {[%clk 0:01:35]}  Nc7 {[%clk 0:00:48]} 23. Nc5 {[%clk 0:01:31]}  Rde8 {[%clk 0:00:40]} 24. Bxc7 {[%clk 0:01:28]}  Kxc7 {[%clk 0:00:40]} 25. Rd6 {[%clk 0:01:29]}  Nc8 {[%clk 0:00:38]} 26. Rxe6 {[%clk 0:01:25]}  Ref8 {[%clk 0:00:39]} 27. Rg6 {[%clk 0:01:11]}  Rxf2 {[%clk 0:00:38]} 28. Rxg7+ {[%clk 0:01:11]}  Kb6 {[%clk 0:00:38]} 29. b4 {[%clk 0:01:11]} 1-0


[Site "https://www.chess.com"]

[Event "Titled Tuesday Blitz August 31 2021"]
[White "Ibrahimli, Murad"]
[Black "stanyga"]
[WhiteFideId "13410229"]
[WhiteElo "2109"]
[BlackElo "2691"]
[Result "0-1"]
[Round "06"]
[TimeControl "180+1"]
[Date "2021.08.31"]
[WhiteClock "0:00:07"]
[BlackClock "0:00:04"]

1. d4 {[%clk 0:03:00]}  d5 {[%clk 0:02:59]} 2. c4 {[%clk 0:02:58]}  c6 {[%clk 0:02:58]} 3. Nc3 {[%clk 0:02:57]}  Nf6 {[%clk 0:02:58]} 4. Nf3 {[%clk 0:02:54]}  e6 {[%clk 0:02:58]} 5. Bg5 {[%clk 0:02:53]}  Nbd7 {[%clk 0:02:56]} 6. e3 {[%clk 0:02:52]}  h6 {[%clk 0:02:54]} 7. Bh4 {[%clk 0:02:51]}  Bd6 {[%clk 0:02:49]} 8. Bd3 {[%clk 0:02:50]}  dxc4 {[%clk 0:02:44]} 9. Bxc4 {[%clk 0:02:50]}  Qc7 {[%clk 0:02:44]} 10. Rc1 {[%clk 0:02:46]}  O-O {[%clk 0:02:42]} 11. O-O {[%clk 0:02:44]}  a6 {[%clk 0:02:19]} 12. Bd3 {[%clk 0:02:20]}  Re8 {[%clk 0:01:57]} 13. Qc2 {[%clk 0:02:13]}  b5 {[%clk 0:01:50]} 14. Ne4 {[%clk 0:02:07]}  Nxe4 {[%clk 0:01:18]} 15. Bxe4 {[%clk 0:02:08]}  Bb7 {[%clk 0:01:18]} 16. Bxc6 {[%clk 0:01:15]}  Rac8 {[%clk 0:01:18]} 17. d5 {[%clk 0:01:14]}  exd5 {[%clk 0:00:45]} 18. Bxd7 {[%clk 0:01:12]}  Qxd7 {[%clk 0:00:46]} 19. Qd3 {[%clk 0:01:12]}  Re4 {[%clk 0:00:40]} 20. Bg3 {[%clk 0:01:10]}  Rec4 {[%clk 0:00:39]} 21. Rxc4 {[%clk 0:01:04]}  Rxc4 {[%clk 0:00:27]} 22. Bxd6 {[%clk 0:00:59]}  Qxd6 {[%clk 0:00:28]} 23. Nd4 {[%clk 0:01:00]}  Bc8 {[%clk 0:00:24]} 24. b3 {[%clk 0:00:57]}  Rc7 {[%clk 0:00:23]} 25. Qd2 {[%clk 0:00:56]}  Be6 {[%clk 0:00:23]} 26. f4 {[%clk 0:00:52]}  Qc5 {[%clk 0:00:19]} 27. f5 {[%clk 0:00:52]}  Bd7 {[%clk 0:00:19]} 28. f6 {[%clk 0:00:51]}  g6 {[%clk 0:00:18]} 29. Qf2 {[%clk 0:00:49]}  Kh7 {[%clk 0:00:14]} 30. Qf4 {[%clk 0:00:38]}  Rc8 {[%clk 0:00:14]} 31. h4 {[%clk 0:00:36]}  Re8 {[%clk 0:00:13]} 32. h5 {[%clk 0:00:31]}  g5 {[%clk 0:00:13]} 33. Qg3 {[%clk 0:00:29]}  Qc3 {[%clk 0:00:10]} 34. Re1 {[%clk 0:00:14]}  Re4 {[%clk 0:00:07]} 35. Qf2 {[%clk 0:00:13]}  Bg4 {[%clk 0:00:05]} 36. Kh2 {[%clk 0:00:05]}  Bxh5 {[%clk 0:00:05]} 37. Rf1 {[%clk 0:00:01]}  Bg6 {[%clk 0:00:05]} 38. Re1 {[%clk 0:00:01]}  Rh4+ {[%clk 0:00:03]} 39. Kg1 {[%clk 0:00:01]}  Re4 {[%clk 0:00:04]} 40. Nf3 {[%clk 0:00:01]}  d4 {[%clk 0:00:04]} 41. Nxd4 {[%clk 0:00:01]}  Qc7 {[%clk 0:00:04]} 42. Nf3 {[%clk 0:00:01]}  Qd6 {[%clk 0:00:04]} 43. Nd4 {[%clk 0:00:02]}  Qe5 {[%clk 0:00:04]} 44. Rf1 {[%clk 0:00:02]}  Rxe3 {[%clk 0:00:04]} 45. Nf3 {[%clk 0:00:03]}  Qe6 {[%clk 0:00:04]} 46. Qd2 {[%clk 0:00:04]}  Re2 {[%clk 0:00:04]} 47. Qd4 {[%clk 0:00:05]}  Qe3+ {[%clk 0:00:05]} 48. Qxe3 {[%clk 0:00:05]}  Rxe3 {[%clk 0:00:06]} 49. Rc1 {[%clk 0:00:06]}  Re6 {[%clk 0:00:07]} 50. Rc7 {[%clk 0:00:06]}  Rxf6 {[%clk 0:00:07]} 51. Ne5 {[%clk 0:00:07]}  Kg7 {[%clk 0:00:06]} 52. Ra7 {[%clk 0:00:07]}  Re6 {[%clk 0:00:06]} 53. Nd7 {[%clk 0:00:07]}  Bb1 {[%clk 0:00:05]} 54. Nc5 {[%clk 0:00:07]}  Rc6 {[%clk 0:00:05]} 55. b4 {[%clk 0:00:07]}  Bxa2 {[%clk 0:00:05]} 56. Nxa6 {[%clk 0:00:08]}  Bc4 {[%clk 0:00:05]} 57. Nc5 {[%clk 0:00:09]}  Rd6 {[%clk 0:00:05]} 58. Kf2 {[%clk 0:00:09]}  Kg6 {[%clk 0:00:05]} 59. Ke3 {[%clk 0:00:09]}  f5 {[%clk 0:00:05]} 60. Rb7 {[%clk 0:00:09]}  f4+ {[%clk 0:00:05]} 61. Kf2 {[%clk 0:00:09]}  Kf5 {[%clk 0:00:05]} 62. Rh7 {[%clk 0:00:08]}  Kg4 {[%clk 0:00:04]} 63. Ne4 {[%clk 0:00:07]}  Re6 {[%clk 0:00:03]} 64. Nc5 {[%clk 0:00:06]}  Re2+ {[%clk 0:00:03]} 65. Kg1 {[%clk 0:00:07]}  Kg3 {[%clk 0:00:04]} 0-1


[Site "https://www.chess.com"]

[Event "Titled Tuesday Blitz August 31 2021"]
[White "Indjic, Aleksandar"]
[Black "Shkapenko, Pavel"]
[WhiteFideId "911925"]
[BlackFideId "4151933"]
[WhiteElo "2643"]
[BlackElo "2386"]
[Result "1-0"]
[Round "06"]
[TimeControl "180+1"]
[Date "2021.08.31"]
[WhiteClock "0:01:52"]
[BlackClock "0:00:11"]

1. d4 {[%clk 0:03:00]}  Nf6 {[%clk 0:02:55]} 2. Nf3 {[%clk 0:03:01]}  e6 {[%clk 0:02:55]} 3. Bg5 {[%clk 0:03:01]}  c5 {[%clk 0:02:55]} 4. e3 {[%clk 0:03:01]}  cxd4 {[%clk 0:02:54]} 5. e4 {[%clk 0:03:01]}  h6 {[%clk 0:02:32]} 6. Bxf6 {[%clk 0:02:59]}  Qxf6 {[%clk 0:02:27]} 7. Qxd4 {[%clk 0:02:58]}  Nc6 {[%clk 0:02:17]} 8. Qxf6 {[%clk 0:02:57]}  gxf6 {[%clk 0:02:17]} 9. c3 {[%clk 0:02:56]}  b6 {[%clk 0:02:16]} 10. Nbd2 {[%clk 0:02:54]}  Bb7 {[%clk 0:02:16]} 11. O-O-O {[%clk 0:02:51]}  Bc5 {[%clk 0:02:13]} 12. Nc4 {[%clk 0:02:50]}  O-O-O {[%clk 0:02:06]} 13. Nd6+ {[%clk 0:02:46]}  Bxd6 {[%clk 0:02:06]} 14. Rxd6 {[%clk 0:02:46]}  Ne5 {[%clk 0:02:01]} 15. Nxe5 {[%clk 0:02:34]}  fxe5 {[%clk 0:02:01]} 16. f3 {[%clk 0:02:35]}  Kc7 {[%clk 0:01:59]} 17. Rd2 {[%clk 0:02:34]}  d5 {[%clk 0:01:58]} 18. Bd3 {[%clk 0:02:34]}  f5 {[%clk 0:01:39]} 19. exf5 {[%clk 0:02:30]}  e4 {[%clk 0:01:39]} 20. fxe4 {[%clk 0:02:29]}  dxe4 {[%clk 0:01:39]} 21. Be2 {[%clk 0:02:28]}  exf5 {[%clk 0:01:36]} 22. Rxd8 {[%clk 0:02:23]}  Rxd8 {[%clk 0:01:33]} 23. g3 {[%clk 0:02:19]}  Kd6 {[%clk 0:01:20]} 24. Rd1+ {[%clk 0:02:18]}  Ke7 {[%clk 0:01:20]} 25. Rxd8 {[%clk 0:02:18]}  Kxd8 {[%clk 0:01:20]} 26. Kd2 {[%clk 0:02:19]}  Ke7 {[%clk 0:01:21]} 27. Ke3 {[%clk 0:02:19]}  Kf6 {[%clk 0:01:14]} 28. Kf4 {[%clk 0:02:19]}  Bd5 {[%clk 0:01:04]} 29. a3 {[%clk 0:02:19]}  Bc6 {[%clk 0:00:47]} 30. g4 {[%clk 0:02:16]}  fxg4 {[%clk 0:00:47]} 31. Bxg4 {[%clk 0:02:17]}  e3 {[%clk 0:00:47]} 32. Kxe3 {[%clk 0:02:16]}  Ke5 {[%clk 0:00:48]} 33. c4 {[%clk 0:02:13]}  Ba4 {[%clk 0:00:42]} 34. b4 {[%clk 0:02:11]}  Bc2 {[%clk 0:00:40]} 35. Bf3 {[%clk 0:02:10]}  Bb3 {[%clk 0:00:32]} 36. Kd3 {[%clk 0:02:08]}  Ba2 {[%clk 0:00:26]} 37. Bb7 {[%clk 0:02:06]}  Bb1+ {[%clk 0:00:25]} 38. Kc3 {[%clk 0:02:06]}  Bf5 {[%clk 0:00:21]} 39. c5 {[%clk 0:02:06]}  bxc5 {[%clk 0:00:20]} 40. bxc5 {[%clk 0:02:07]}  Be6 {[%clk 0:00:19]} 41. Kb4 {[%clk 0:02:05]}  Bf5 {[%clk 0:00:17]} 42. Kb5 {[%clk 0:02:03]}  Bd3+ {[%clk 0:00:16]} 43. Kc6 {[%clk 0:02:02]}  Kd4 {[%clk 0:00:13]} 44. Kd6 {[%clk 0:02:02]}  Bf5 {[%clk 0:00:13]} 45. c6 {[%clk 0:02:01]}  Kc4 {[%clk 0:00:13]} 46. c7 {[%clk 0:01:55]}  Kc3 {[%clk 0:00:12]} 47. Bc6 {[%clk 0:01:54]}  Bc8 {[%clk 0:00:11]} 48. Bd7 {[%clk 0:01:53]}  Bb7 {[%clk 0:00:11]} 49. h4 {[%clk 0:01:52]}  a5 {[%clk 0:00:10]} 50. a4 {[%clk 0:01:52]}  Kb4 {[%clk 0:00:10]} 51. h5 {[%clk 0:01:52]}  Ba6 {[%clk 0:00:10]} 52. c8=Q {[%clk 0:01:51]}  Bxc8 {[%clk 0:00:10]} 53. Bxc8 {[%clk 0:01:51]}  Kxa4 {[%clk 0:00:11]} 54. Ke6 {[%clk 0:01:51]}  Kb4 {[%clk 0:00:10]} 55. Kf6 {[%clk 0:01:52]}  a4 {[%clk 0:00:10]} 56. Kg6 {[%clk 0:01:52]}  a3 {[%clk 0:00:11]} 57. Be6 {[%clk 0:01:52]} 1-0


[Site "https://www.chess.com"]